{"text_format":"3","workbook":"xlsx","n_sheets":1,"sheets":["Pressione sanguigna e glicemia"],"not_rendered":{"defined_names":9},"read":"whole","date_system":"1900"}

{"sheet":"Pressione sanguigna e glicemia","index":0,"n_rows":13,"n_cols":11,"rows_kept":13,"merged":[[0,1,4,3],[0,4,0,9],[1,4,1,6],[1,7,1,9]]}
[null,"Registrazione pressione sanguigna e glicemia",null,null,"Personalizzare i valori di scala nelle celle da E2 a J5 sottostanti."]
[{"$nulls":4},"PRESSIONE SANGUIGNA",null,null,"VALORI GLICEMIA"]
[{"$nulls":4},120,"SISTOLICA",140,70,100,150]
[{"$nulls":4},80,"DIASTOLICA",90,"BASSA","NORMALE","ALTA"]
[{"$nulls":4},"PRESSIONE IDEALE",null,"CHIAMARE IL MEDICO"]
[null,"Data","Ora","Evento","Sistolica","Diastolica","Frequenza cardiaca","Glicemia","Livello","Stato","Note"]
[null,{"$f":"TODAY()","v":"2022-08-10"},"06:00:00","Al risveglio",129,79,72,55,{"$f":"PressioneSanguignaEGlicemia[[#This Row],[Glicemia]]","v":55},{"$f":"IFERROR(IF(PressioneSanguignaEGlicemia[[#This Row],[Livello]]=0,\"\",IF(PressioneSanguignaEGlicemia[[#This Row],[Livello]]<=GBassa,\"Bassa\",IF(AND(PressioneSanguignaEGlicemia[[#This Row],[Livello]]>GBassa,PressioneSanguignaEGlicemia[[#This Row],[Livello]]<GAlta),\"Normale\",\"Alta\"))), \"\")","v":"Bassa"}]
[null,{"$f":"TODAY()","v":"2022-08-10"},"07:00:00","Prima dei pasti",120,80,74,70,{"$f":"PressioneSanguignaEGlicemia[[#This Row],[Glicemia]]","v":70},{"$f":"IFERROR(IF(PressioneSanguignaEGlicemia[[#This Row],[Livello]]=0,\"\",IF(PressioneSanguignaEGlicemia[[#This Row],[Livello]]<=GBassa,\"Bassa\",IF(AND(PressioneSanguignaEGlicemia[[#This Row],[Livello]]>GBassa,PressioneSanguignaEGlicemia[[#This Row],[Livello]]<GAlta),\"Normale\",\"Alta\"))), \"\")","v":"Bassa"}]
[null,"2022-08-10","09:00:00","Dopo i pasti",133,80,75,75,{"$f":"PressioneSanguignaEGlicemia[[#This Row],[Glicemia]]","v":75},{"$f":"IFERROR(IF(PressioneSanguignaEGlicemia[[#This Row],[Livello]]=0,\"\",IF(PressioneSanguignaEGlicemia[[#This Row],[Livello]]<=GBassa,\"Bassa\",IF(AND(PressioneSanguignaEGlicemia[[#This Row],[Livello]]>GBassa,PressioneSanguignaEGlicemia[[#This Row],[Livello]]<GAlta),\"Normale\",\"Alta\"))), \"\")","v":"Normale"}]
[null,"2022-08-10","10:00:00","Solo pressione sanguigna",143,91,75,190,{"$f":"PressioneSanguignaEGlicemia[[#This Row],[Glicemia]]","v":190},{"$f":"IFERROR(IF(PressioneSanguignaEGlicemia[[#This Row],[Livello]]=0,\"\",IF(PressioneSanguignaEGlicemia[[#This Row],[Livello]]<=GBassa,\"Bassa\",IF(AND(PressioneSanguignaEGlicemia[[#This Row],[Livello]]>GBassa,PressioneSanguignaEGlicemia[[#This Row],[Livello]]<GAlta),\"Normale\",\"Alta\"))), \"\")","v":"Alta"}]
[null,"2022-08-10","12:00:00","Prima dei pasti",141,84,70,140,{"$f":"PressioneSanguignaEGlicemia[[#This Row],[Glicemia]]","v":140},{"$f":"IFERROR(IF(PressioneSanguignaEGlicemia[[#This Row],[Livello]]=0,\"\",IF(PressioneSanguignaEGlicemia[[#This Row],[Livello]]<=GBassa,\"Bassa\",IF(AND(PressioneSanguignaEGlicemia[[#This Row],[Livello]]>GBassa,PressioneSanguignaEGlicemia[[#This Row],[Livello]]<GAlta),\"Normale\",\"Alta\"))), \"\")","v":"Normale"}]
[null,{"$f":"TODAY()","v":"2022-08-10"},"15:00:00","Dopo i pasti",132,80,68,90,{"$f":"PressioneSanguignaEGlicemia[[#This Row],[Glicemia]]","v":90},{"$f":"IFERROR(IF(PressioneSanguignaEGlicemia[[#This Row],[Livello]]=0,\"\",IF(PressioneSanguignaEGlicemia[[#This Row],[Livello]]<=GBassa,\"Bassa\",IF(AND(PressioneSanguignaEGlicemia[[#This Row],[Livello]]>GBassa,PressioneSanguignaEGlicemia[[#This Row],[Livello]]<GAlta),\"Normale\",\"Alta\"))), \"\")","v":"Normale"},"Farmaci per la pressione assunti ai pasti"]
[null,"Medie",null,null,{"$f":"SUBTOTAL(101,PressioneSanguignaEGlicemia[Sistolica])","v":133},{"$f":"SUBTOTAL(101,PressioneSanguignaEGlicemia[Diastolica])","v":{"v":82.33333333333333,"d":"82"}},{"$f":"SUBTOTAL(101,PressioneSanguignaEGlicemia[Frequenza cardiaca])","v":{"v":72.33333333333333,"d":"72"}},{"$f":"SUBTOTAL(101,PressioneSanguignaEGlicemia[Glicemia])","v":{"v":103.33333333333333,"d":"103"}}]